bitfinex/quotes_BTCUSD_20260310
["timestamp","ask_amount","ask_price","bid_price","bid_amount"]
[1773111405595,0.03,70351.0,70339.0,0.00144]
[1773111406396,0.66698521,70351.0,70339.0,0.00144]
[1773111406608,0.66698521,70349.0,70340.0,0.00144]
[1773111407246,0.03,70347.0,70337.0,0.0002]
[1773111407446,0.07250916,70354.0,70337.0,0.0002]
[1773111407447,0.14681855,70343.0,70338.0,0.00144]
[1773111407811,0.14681855,70343.0,70337.0,0.0002]
[1773111408116,0.07107926,70344.0,70334.0,0.00144]
[1773111408117,0.14681855,70337.0,70334.0,0.00144]
[1773111408486,0.03,70337.0,70334.0,0.00144]
[1773111408686,0.07107926,70344.0,70334.0,0.00144]
[1773111409055,0.03,70342.0,70334.0,0.00144]
[1773111409485,0.03,70340.0,70334.0,0.00144]
[1773111409683,0.03,70338.0,70335.0,0.00144]
[1773111410181,0.14681855,70338.0,70335.0,0.00144]
[1773111410714,0.03,70335.0,70332.0,0.00144]
[1773111410927,0.03,70335.0,70326.0,0.0001756]
[1773111411217,0.03,70335.0,70327.0,0.00144]
[1773111411422,0.03,70335.0,70329.0,0.0002]
[1773111411624,0.10108871,70335.0,70330.0,0.00144]
[1773111411834,0.03,70333.0,70331.0,0.00144]
[1773111412162,0.03,70333.0,70323.0,0.00015]
[1773111412163,0.03011418,70333.0,70306.0,0.00037]
[1773111412304,0.03,70323.0,70307.0,0.07255667]
[1773111413086,0.03,70323.0,70307.0,0.17850778]
[1773111413289,0.03,70323.0,70307.0,0.17706778]
[1773111413507,0.03,70323.0,70308.0,0.00144]
[1773111413912,0.14458876,70319.0,70308.0,0.00144]
[1773111414089,0.03,70319.0,70308.0,0.00144]
[1773111414294,0.03,70317.0,70308.0,0.00144]
[1773111415354,0.03,70321.0,70308.0,0.00144]
[1773111415538,0.03,70319.0,70308.0,0.00144]
[1773111415739,0.03,70317.0,70309.0,0.00144]
[1773111416071,0.03,70315.0,70309.0,0.00144]
[1773111416223,0.03,70315.0,70306.0,0.00037]
[1773111416424,0.03,70315.0,70307.0,0.00144]
[1773111416815,0.03,70313.0,70307.0,0.00144]
[1773111417923,0.03,70312.0,70307.0,0.00144]
[1773111418670,0.03,70312.0,70308.0,0.00144]
[1773111418875,0.03,70311.0,70308.0,0.00144]
[1773111419239,0.11458876,70337.0,70308.0,0.00164]
[1773111419438,0.52372628,70334.0,70308.0,0.00164]
[1773111419661,0.11458876,70331.0,70308.0,0.00164]
[1773111419910,0.03,70327.0,70309.0,0.07111465]
[1773111420057,0.03011416,70327.0,70311.0,0.10595111]
[1773111420451,0.03011416,70327.0,70313.0,0.10595111]
[1773111420936,0.03,70335.0,70315.0,0.54252233]
[1773111421105,0.10108899,70335.0,70317.0,0.10595111]
[1773111421909,0.10108899,70335.0,70318.0,0.61362787]
[1773111422138,0.10108899,70335.0,70319.0,0.00144]
[1773111422353,0.10108899,70335.0,70309.0,0.07111465]
[1773111422354,0.10108899,70335.0,70296.0,0.17707888]
[1773111422355,0.52372628,70324.0,70296.0,0.17707888]
[1773111422625,0.52372628,70324.0,70292.0,0.54814233]
[1773111422626,0.52372628,70324.0,70292.0,0.00562]
[1773111422627,0.63831504,70316.0,70292.0,0.00562]
[1773111422805,0.45302762,70320.0,70277.0,0.10595111]
[1773111422806,0.52372628,70298.0,70285.0,0.00017]
[1773111422935,0.03,70297.0,70286.0,0.00144]
[1773111423810,0.03,70293.0,70285.0,0.00017]
[1773111424033,0.03011416,70293.0,70287.0,0.00144]
[1773111424237,0.57202971,70293.0,70287.0,0.00144]
[1773111424368,0.64316063,70293.0,70288.0,0.00144]
[1773111424564,0.03011416,70293.0,70288.0,0.00144]
[1773111424822,0.03,70304.0,70289.0,0.10595111]
[1773111425033,0.03,70304.0,70289.0,0.10633038]
[1773111425474,0.03,70304.0,70291.0,0.10595111]
[1773111425901,0.03,70303.0,70291.0,0.10595111]
[1773111426091,0.03,70303.0,70293.0,0.07113083]
[1773111426290,0.03,70303.0,70293.0,0.07133083]
[1773111426854,0.03,70302.0,70293.0,0.07133083]
[1773111427079,0.61303245,70307.0,70289.0,0.00037927]
[1773111427080,0.03,70300.0,70289.0,0.00037927]
[1773111427306,0.0711169,70307.0,70289.0,0.00037927]
[1773111427307,0.07111621,70308.0,70291.0,0.10595111]
[1773111427503,0.07111379,70310.0,70293.0,0.10595111]
[1773111428064,0.071109,70315.0,70295.0,0.51988302]
[1773111428233,0.03,70314.0,70298.0,0.51988302]
[1773111428639,0.03,70314.0,70299.0,0.10595111]
[1773111429404,0.03,70312.0,70300.0,0.00144]
[1773111429608,0.071109,70315.0,70300.0,0.00144]
[1773111429609,0.67719694,70308.0,70300.0,0.00144]
[1773111430039,0.03,70308.0,70300.0,0.00144]
[1773111430458,0.07111427,70310.0,70301.0,0.10512212]
[1773111430660,0.07110883,70315.0,70301.0,0.17624486]
[1773111430818,0.54191555,70321.0,70301.0,0.17624486]
[1773111430819,0.03,70314.0,70302.0,0.10512212]
[1773111431040,0.03,70314.0,70303.0,0.10512212]
[1773111431686,0.07672379,70320.0,70304.0,0.10512212]
[1773111431912,0.03,70319.0,70304.0,0.10512212]
[1773111432112,0.001,70308.0,70306.0,0.10512212]
[1773111432315,0.03,70317.0,70305.0,0.07111869]
[1773111432316,0.03,70317.0,70307.0,0.10656212]
[1773111433250,0.03,70316.0,70307.0,0.10656212]
[1773111433805,0.03,70316.0,70307.0,0.00144]
[1773111434234,0.03,70317.0,70307.0,0.00144]
[1773111434436,0.03,70317.0,70300.0,0.10512212]
[1773111434437,0.03,70317.0,70294.0,0.07112908]
[1773111434614,0.57191555,70315.0,70296.0,0.07112764]
[1773111434808,0.57191555,70315.0,70297.0,0.10512212]
[1773111435028,0.57191555,70315.0,70298.0,0.00144]
[1773111435433,0.57191555,70315.0,70299.0,0.00144]
[1773111435973,0.17638693,70318.0,70301.0,0.10512212]
[1773111435974,0.03,70317.0,70301.0,0.10512212]
[1773111436177,0.03,70315.0,70302.0,0.07112173]
[1773111436321,0.03,70315.0,70302.0,0.17624385]
[1773111436524,0.03,70315.0,70305.0,0.10512212]
[1773111437131,0.03,70316.0,70305.0,0.10512212]
[1773111438143,0.07672401,70320.0,70306.0,0.51988302]
[1773111438339,0.03,70319.0,70308.0,0.07111566]
[1773111438670,0.03,70319.0,70309.0,0.00144]
[1773111439479,0.57191555,70319.0,70309.0,0.00144]
[1773111439688,0.03,70315.0,70293.0,0.07133034]
[1773111439894,0.30467782,70320.0,70294.0,0.00144]
[1773111439895,0.03,70307.0,70294.0,0.00144]
[1773111440212,0.03,70303.0,70295.0,0.00144]
[1773111440575,0.03,70303.0,70296.0,0.00144]
[1773111440984,0.03,70303.0,70293.0,0.0002]
[1773111441190,0.03,70297.0,70294.0,0.00144]
[1773111441403,0.0711197,70304.0,70294.0,0.00144]
[1773111441807,0.54191555,70309.0,70294.0,0.00144]
[1773111441808,0.07109948,70324.0,70296.0,0.10512212]
[1773111442011,0.54191555,70321.0,70296.0,0.10512212]
[1773111442352,0.07154949,70325.0,70296.0,0.10512212]
[1773111442353,0.03,70317.0,70305.0,0.0002]
[1773111442553,0.00022001,70316.0,70306.0,0.00144]
[1773111443538,0.00022001,70316.0,70306.0,0.10656212]
[1773111444042,0.00022001,70316.0,70306.0,0.00144]
[1773111444268,0.03,70312.0,70306.0,0.00144]
[1773111444479,0.03,70312.0,70305.0,0.0002]
[1773111444644,0.0711106,70313.0,70297.0,0.07132639]
[1773111444645,0.57191555,70310.0,70297.0,0.07132639]
[1773111444843,0.57191555,70310.0,70298.0,0.00144]
[1773111445268,0.57191555,70310.0,70299.0,0.00144]
[1773111445900,0.03,70312.0,70299.0,0.00144]
[1773111446129,0.03,70312.0,70300.0,0.10512212]
[1773111446539,0.03,70312.0,70301.0,0.07112274]
[1773111447084,0.03,70311.0,70301.0,0.07112274]
[1773111448058,0.03,70311.0,70295.0,0.07112679]
[1773111448059,0.03,70310.0,70280.0,0.07114393]
[1773111448268,0.03,70304.0,70291.0,0.10512212]
[1773111448466,0.03,70304.0,70294.0,0.07112982]
[1773111449124,0.03,70304.0,70295.0,0.00144]
[1773111449329,0.03,70303.0,70295.0,0.00144]
[1773111450422,0.03,70302.0,70295.0,0.00144]
[1773111450576,0.03,70302.0,70295.0,0.07256792]
[1773111450807,0.64719694,70314.0,70297.0,0.51988302]
[1773111450808,0.07110988,70314.0,70297.0,0.51988302]
[1773111451019,0.07110988,70314.0,70298.0,0.10512212]
[1773111451233,0.64719694,70313.0,70295.0,0.07256792]
[1773111451441,0.03,70308.0,70296.0,0.00144]
[1773111451668,0.03,70308.0,70297.0,0.00144]
[1773111452611,0.03,70308.0,70298.0,0.00144]
[1773111452612,0.03,70306.0,70298.0,0.00144]
[1773111452957,0.03,70304.0,70298.0,0.00144]
[1773111453155,0.03,70300.0,70299.0,0.00144]
[1773111453558,0.03,70300.0,70297.0,0.00144]
[1773111453559,0.4976807,70299.0,70297.0,0.00144]
[1773111453763,0.03,70298.0,70297.0,0.00144]
[1773111454772,0.07111667,70308.0,70297.0,0.00144]
[1773111454773,0.07111368,70310.0,70299.0,0.001]
[1773111454992,0.56879438,70310.0,70299.0,0.001]
[1773111455191,0.10528139,70309.0,70299.0,0.001]
[1773111455514,0.60296209,70309.0,70299.0,0.001]
[1773111455834,0.03,70308.0,70299.0,0.001]
[1773111455972,0.5276807,70308.0,70299.0,0.001]
[1773111456178,0.5276807,70308.0,70293.0,0.07113065]
[1773111456179,0.63296209,70308.0,70291.0,0.07113213]
[1773111456377,0.63296209,70308.0,70292.0,0.00144]
[1773111456801,0.03,70306.0,70293.0,0.00144]
[1773111457280,0.03,70306.0,70294.0,0.10512212]
[1773111457793,0.03,70307.0,70294.0,0.10512212]
[1773111458787,0.03,70305.0,70294.0,0.17625171]
[1773111460703,0.0711106,70314.0,70294.0,0.16958174]
[1773111460904,0.60398546,70324.0,70301.0,0.48286826]
[1773111461101,0.07132765,70316.0,70304.0,0.09845215]
[1773111461713,0.03,70315.0,70299.0,0.0002]
[1773111461916,0.03,70315.0,70300.0,0.00144]
[1773111462744,0.03,70315.0,70299.0,0.09865215]
[1773111462745,0.03,70311.0,70299.0,0.0002]
[1773111462945,0.07110959,70314.0,70300.0,0.00144]
[1773111462946,0.03,70309.0,70300.0,0.00144]
[1773111463304,0.03,70309.0,70299.0,0.0002]
[1773111463503,0.03,70307.0,70300.0,0.00144]
[1773111463929,0.0328,70307.0,70300.0,0.00144]
[1773111464535,0.03,70306.0,70300.0,0.00144]
[1773111465707,0.03,70306.0,70299.0,0.0002]
[1773111465911,0.03,70306.0,70301.0,0.00144]
[1773111466852,0.07110858,70315.0,70301.0,0.00144]
[1773111467667,0.07110858,70315.0,70301.0,0.07256184]
[1773111467858,0.03,70314.0,70301.0,0.07256184]
[1773111469518,0.10464475,70332.0,70302.0,0.48286826]
[1773111469682,0.00022001,70340.0,70302.0,0.48286826]
[1773111469683,0.07131998,70324.0,70307.0,0.48286826]
[1773111469891,0.07131998,70324.0,70308.0,0.01325156]
[1773111470212,0.00022001,70324.0,70308.0,0.01325156]
[1773111470437,0.00022001,70324.0,70309.0,0.48286826]
[1773111470637,0.00022001,70324.0,70311.0,0.48286826]
[1773111470849,0.03,70321.0,70308.0,0.00144]
[1773111471061,0.13464475,70321.0,70308.0,0.00144]
[1773111471263,0.03,70321.0,70308.0,0.00144]
[1773111471683,0.03,70321.0,70310.0,0.01188505]
[1773111471832,0.00045001,70325.0,70309.0,0.07111465]
[1773111471833,0.00045001,70325.0,70313.0,0.01188505]
[1773111472043,0.00045001,70325.0,70314.0,0.00144]
[1773111472044,0.10154872,70325.0,70314.0,0.00144]
[1773111472205,0.03,70321.0,70315.0,0.00144]
[1773111472423,0.13464475,70321.0,70315.0,0.00144]
[1773111473050,0.03,70321.0,70315.0,0.00144]
[1773111473266,0.03045001,70325.0,70315.0,0.00144]
[1773111473684,0.1293138,70325.0,70315.0,0.07254788]
[1773111473900,0.03045001,70325.0,70315.0,0.07254788]
[1773111474103,0.071094,70330.0,70315.0,0.07254788]
[1773111474104,0.09886379,70330.0,70315.0,0.07254788]
[1773111474313,0.03,70329.0,70315.0,0.07254788]
[1773111474776,0.03,70329.0,70316.0,0.01039428]
[1773111475034,0.03,70329.0,70315.0,0.5615413]
[1773111475035,0.03,70329.0,70317.0,0.48899342]
[1773111475227,0.00022001,70333.0,70320.0,0.01039428]
[1773111475374,0.00022001,70333.0,70321.0,0.00144]
[1773111475578,0.00022001,70333.0,70322.0,0.0711015]
[1773111476683,0.03,70331.0,70322.0,0.0711015]
[1773111477409,0.00022001,70333.0,70322.0,0.0711015]
[1773111477615,0.09886379,70332.0,70323.0,0.00144]
[1773111477826,0.09886379,70331.0,70324.0,0.00144]
[1773111478030,0.47147579,70329.0,70307.0,0.00909328]
[1773111478239,0.03,70325.0,70314.0,0.00144]
[1773111479124,0.03,70323.0,70315.0,0.00144]
[1773111479752,0.03,70323.0,70316.0,0.07110757]
[1773111479980,0.03,70323.0,70317.0,0.00144]
[1773111480223,0.03,70323.0,70312.0,0.07111091]
[1773111480224,0.03,70318.0,70312.0,0.07111147]
[1773111480432,0.00022001,70325.0,70317.0,0.00144]
[1773111480850,0.00022001,70325.0,70318.0,0.00144]
[1773111480851,0.09886379,70323.0,70318.0,0.00144]
[1773111481063,0.09886379,70319.0,70318.0,0.00144]
[1773111481269,0.07131949,70325.0,70314.0,0.001]
[1773111481270,0.03,70321.0,70314.0,0.001]
[1773111481471,0.03,70321.0,70316.0,0.00144]
[1773111481802,0.03,70321.0,70316.0,0.07254687]
[1773111482214,0.03,70320.0,70316.0,0.00144]
[1773111482431,0.13117752,70318.0,70316.0,0.00244]
[1773111482647,0.03,70314.0,70312.0,0.00144]
[1773111482815,0.13117752,70313.0,70312.0,0.00144]
[1773111483348,0.13117752,70313.0,70303.0,0.07112037]
[1773111483561,0.03,70311.0,70304.0,0.00144]
[1773111483842,0.13117752,70311.0,70305.0,0.00144]
[1773111485412,0.13076943,70307.0,70301.0,0.07132174]
[1773111485700,0.03,70305.0,70302.0,0.00144]
[1773111485872,5.414e-05,70314.0,70303.0,0.07112072]
[1773111486069,0.10082357,70314.0,70303.0,0.07112072]
[1773111486630,5.414e-05,70314.0,70303.0,0.07112072]
[1773111486829,0.03,70318.0,70302.0,0.0725611]
[1773111487036,0.03,70318.0,70303.0,0.46533829]
[1773111487854,0.00022001,70320.0,70304.0,0.0711197]
[1773111488871,0.03022001,70320.0,70304.0,0.0711197]
[1773111489363,0.03022001,70320.0,70305.0,0.46533829]
[1773111489838,0.03,70319.0,70306.0,0.07111768]
[1773111490032,0.071094,70330.0,70307.0,0.46533829]
[1773111490229,0.07109283,70331.0,70309.0,0.46533829]
[1773111490230,0.07109455,70329.0,70309.0,0.46533829]
[1773111490408,0.09954873,70327.0,70309.0,0.46533829]
[1773111490814,0.03,70326.0,70306.0,0.07111768]
[1773111491014,0.03,70326.0,70307.0,0.46677829]
[1773111491841,0.03,70325.0,70308.0,0.07111566]
[1773111492023,0.03,70323.0,70308.0,0.07111566]
[1773111492364,0.03,70315.0,70309.0,0.00144]
[1773111492569,0.03,70313.0,70302.0,0.0711749]
[1773111492725,0.03,70311.0,70303.0,0.00144]
[1773111493063,0.12907919,70311.0,70303.0,0.00144]
[1773111493836,0.48230426,70317.0,70304.0,0.0711197]
[1773111493837,0.09907919,70313.0,70304.0,0.0711197]
[1773111494029,0.03,70312.0,70304.0,0.0711197]
[1773111494433,0.12868228,70312.0,70304.0,0.0711197]
[1773111495815,0.55341279,70317.0,70304.0,0.0711197]
[1773111496199,0.09828958,70316.0,70302.0,3.413e-05]
[1773111496401,0.09828958,70316.0,70301.0,0.0002]
[1773111496402,0.48230426,70313.0,70303.0,0.00144]
[1773111496562,0.07110853,70317.0,70303.0,0.00144]
[1773111496563,0.48230426,70309.0,70303.0,0.00144]
[1773111496769,0.03,70304.0,70303.0,0.00144]
[1773111496971,0.12828958,70304.0,70303.0,0.00144]
[1773111498063,0.03011422,70309.0,70303.0,0.07256053]
[1773111498289,0.0713259,70318.0,70304.0,0.08793035]
[1773111499056,0.03,70317.0,70304.0,0.08793035]
[1773111499628,0.12151974,70317.0,70303.0,0.07256053]
[1773111499776,0.03,70317.0,70303.0,0.07256053]
[1773111499981,0.03,70315.0,70303.0,0.07256053]
[1773111500377,0.12151974,70315.0,70303.0,0.07256053]
[1773111500983,0.03,70314.0,70303.0,0.15977758]
[1773111501567,0.03,70314.0,70304.0,0.08721705]
[1773111501974,0.07110718,70317.0,70305.0,0.07111869]
[1773111501975,0.03,70313.0,70305.0,0.07111869]
[1773111503000,0.07110793,70316.0,70305.0,0.07111869]
[1773111503161,0.03,70315.0,70305.0,0.07111869]
[1773111503636,0.03,70315.0,70302.0,0.07112173]
[1773111503907,0.03,70309.0,70306.0,0.00144]
[1773111504312,0.03,70307.0,70306.0,0.00144]
[1773111505075,0.03,70305.0,70303.0,0.0002]
[1773111505277,0.64493879,70309.0,70304.0,0.00144]
[1773111505593,0.07111306,70311.0,70304.0,0.00144]
[1773111505594,0.07111367,70310.0,70304.0,0.00144]
[1773111505795,8.665e-05,70315.0,70305.0,0.09030526]
[1773111505967,0.07133012,70314.0,70305.0,0.09030526]
[1773111506169,0.07133012,70314.0,70304.0,0.00144]
[1773111506170,0.03,70313.0,70304.0,0.00144]
[1773111506365,0.03,70309.0,70304.0,0.00144]
[1773111506583,0.51230426,70307.0,70299.0,0.0002]
[1773111506836,0.09151974,70304.0,70301.0,0.00144]
[1773111507200,0.03,70303.0,70301.0,0.00144]
[1773111507401,0.12151974,70303.0,70301.0,0.00144]
[1773111508091,0.03,70304.0,70301.0,0.00144]
[1773111508309,0.07111667,70307.0,70301.0,0.00144]
[1773111509117,0.12151974,70306.0,70301.0,0.00144]
[1773111509490,0.07111667,70307.0,70300.0,0.0713537]
[1773111509491,0.03,70304.0,70302.0,0.00144]
[1773111509694,0.03,70304.0,70297.0,0.0002]
[1773111509695,0.03,70302.0,70295.0,0.0002]
[1773111509939,0.03,70302.0,70296.0,0.00144]
[1773111510113,0.12151974,70302.0,70296.0,0.00144]
[1773111510313,0.03,70298.0,70297.0,0.00144]
[1773111511402,0.03,70299.0,70297.0,0.00144]
[1773111512111,0.10112491,70299.0,70297.0,0.00144]
[1773111512309,0.10112491,70299.0,70293.0,0.0002]
[1773111512520,0.10112491,70299.0,70294.0,0.00144]
[1773111512521,0.03,70295.0,70294.0,0.00144]
[1773111513774,0.07112491,70299.0,70289.0,0.00144]
[1773111513775,0.03,70294.0,70289.0,0.00144]
[1773111513969,0.51223775,70292.0,70289.0,0.00144]
[1773111514177,0.03,70292.0,70289.0,0.00144]
[1773111514811,0.07112108,70303.0,70290.0,0.07113387]
[1773111515011,0.0711197,70304.0,70291.0,0.09030526]
[1773111516149,0.03,70303.0,70291.0,0.09030526]
[1773111516379,0.48223775,70307.0,70291.0,0.09030526]
[1773111516657,0.55335543,70306.0,70292.0,0.07113184]
[1773111516864,0.55335543,70306.0,70292.0,0.07257184]
[1773111517002,0.51223775,70305.0,70292.0,0.07113184]
[1773111517203,0.51223775,70305.0,70293.0,0.00144]
[1773111517451,0.03,70305.0,70293.0,0.09174526]
[1773111517666,0.51223775,70303.0,70293.0,0.00144]
[1773111518438,0.03,70301.0,70287.0,0.07113604]
[1773111518677,0.03,70301.0,70288.0,0.00144]
[1773111518678,0.03,70297.0,70288.0,0.00144]
[1773111518841,0.60375749,70297.0,70288.0,0.00144]
[1773111520431,0.12151974,70297.0,70288.0,0.00144]
[1773111520624,0.00038086,70301.0,70289.0,0.09559666]
[1773111520848,0.07133481,70309.0,70291.0,0.48142254]
[1773111521193,0.07133481,70309.0,70294.0,0.09415666]
[1773111521495,0.0711106,70313.0,70296.0,0.48142254]
[1773111521696,0.0711106,70313.0,70295.0,0.00144]
[1773111521697,0.03,70312.0,70297.0,0.09415666]
[1773111521898,0.03,70312.0,70298.0,0.09415666]
[1773111522301,0.03,70312.0,70299.0,0.00144]
[1773111522704,0.10111262,70311.0,70300.0,0.07112375]
[1773111523056,0.64280832,70314.0,70300.0,0.07112375]
[1773111523057,0.00022001,70314.0,70301.0,0.09415666]
[1773111523272,0.07132977,70314.0,70303.0,0.09415666]
[1773111523469,0.00022001,70314.0,70303.0,0.09415666]
[1773111523673,0.03022001,70314.0,70303.0,0.09415666]
[1773111524886,0.03,70312.0,70299.0,0.07112467]
[1773111525107,0.03,70312.0,70300.0,0.00144]
[1773111525636,0.00022001,70314.0,70301.0,0.09415666]
[1773111525839,0.48223775,70313.0,70300.0,0.00144]
[1773111526045,0.03,70310.0,70300.0,0.00144]
[1773111527025,0.16034955,70316.0,70300.0,0.00144]
[1773111527026,0.48223775,70334.0,70303.0,0.09415666]
[1773111527225,0.00022001,70335.0,70310.0,0.22666741]
[1773111527226,0.07130861,70335.0,70310.0,0.22666741]
[1773111527422,0.07130861,70335.0,70313.0,0.48142254]
[1773111527626,0.08923996,70333.0,70312.0,0.09415666]
[1773111527803,0.48223775,70330.0,70313.0,0.00144]
[1773111528010,0.48223775,70328.0,70313.0,0.00144]
[1773111528214,0.51223775,70327.0,70313.0,0.00144]
[1773111528839,0.60147771,70327.0,70314.0,0.00144]
[1773111529178,0.07130861,70335.0,70316.0,0.09415666]
[1773111529179,0.03,70326.0,70316.0,0.09415666]
[1773111529385,0.03011426,70326.0,70316.0,0.09415666]
[1773111529706,0.03011426,70326.0,70312.0,0.07111084]
[1773111529872,0.03,70322.0,70314.0,0.07110936]
[1773111530070,0.51223775,70322.0,70312.0,0.07111084]
[1773111530270,0.51223775,70322.0,70315.0,0.00144]
[1773111530471,0.51223775,70322.0,70316.0,0.001]
[1773111531273,0.03,70321.0,70316.0,0.001]
[1773111531690,0.03,70321.0,70315.0,0.00144]
[1773111531691,0.11492783,70319.0,70301.0,0.08809262]
[1773111531858,0.11492783,70319.0,70303.0,0.08809262]
[1773111532063,0.03,70317.0,70304.0,0.00144]
[1773111532419,0.03,70317.0,70303.0,0.08809262]
[1773111532606,0.48673442,70317.0,70313.0,0.0002]
[1773111532798,0.48673442,70317.0,70314.0,0.00144]
[1773111533677,0.03,70320.0,70314.0,0.00144]
[1773111533927,0.03,70320.0,70314.0,0.08953262]
[1773111535191,0.001,70317.0,70314.0,0.08953262]
[1773111535736,0.03,70320.0,70314.0,0.08953262]
[1773111535890,0.071212,70326.0,70315.0,0.08809262]
[1773111536860,0.00011426,70326.0,70315.0,0.08809262]
[1773111537480,0.03011426,70326.0,70315.0,0.08809262]
[1773111538154,0.03011426,70326.0,70317.0,0.08809262]
[1773111538358,0.00011426,70326.0,70317.0,0.08809262]
[1773111540071,0.0713117,70332.0,70318.0,0.08809262]
[1773111540072,0.03,70331.0,70318.0,0.08809262]
[1773111540272,0.03,70331.0,70320.0,0.08809262]
[1773111540505,0.03,70331.0,70322.0,0.08809262]
[1773111540696,0.00022001,70335.0,70322.0,0.08809262]
[1773111540919,0.07130904,70335.0,70322.0,0.08809262]
[1773111541064,0.03,70334.0,70322.0,0.08809262]
[1773111542299,0.03,70334.0,70323.0,0.07110049]
[1773111542500,0.03,70334.0,70324.0,0.00144]
[1773111543284,0.03,70333.0,70324.0,0.00144]
[1773111543486,0.00042521,70340.0,70326.0,0.48583803]
[1773111543783,0.00042521,70340.0,70324.0,0.00144]
[1773111543986,0.00042521,70340.0,70321.0,0.07110153]
[1773111543987,0.08492783,70337.0,70325.0,0.00144]
[1773111544307,0.5200523,70331.0,70326.0,0.00144]
[1773111544487,0.5200523,70331.0,70318.0,0.07121909]
[1773111544488,0.03,70329.0,70318.0,0.00011426]
[1773111544692,0.07109139,70332.0,70318.0,0.00011426]
[1773111544693,0.5200523,70325.0,70319.0,0.00144]
[1773111544916,0.03,70325.0,70319.0,0.00144]
[1773111545686,0.5200523,70329.0,70319.0,0.00144]
[1773111546429,0.03,70327.0,70319.0,0.00144]
[1773111546637,0.03,70327.0,70319.0,0.00164]
[1773111548440,0.03,70325.0,70319.0,0.0002]
[1773111548638,0.5200523,70325.0,70320.0,0.00144]
[1773111549353,0.03,70325.0,70320.0,0.00144]
[1773111550259,0.5200523,70325.0,70320.0,0.00144]
[1773111550461,0.07109948,70324.0,70321.0,0.00144]
[1773111550608,0.03,70317.0,70306.0,0.16280995]
[1773111550803,0.52014972,70317.0,70312.0,0.00144]
[1773111551236,0.03009742,70317.0,70312.0,0.00144]
[1773111551434,0.03009742,70317.0,70310.0,0.07111335]
[1773111551756,0.03,70316.0,70313.0,0.00144]
[1773111552162,0.03,70316.0,70314.0,0.00144]
[1773111552571,0.03,70314.0,70307.0,0.07111652]
[1773111552746,0.03,70314.0,70312.0,0.00144]
[1773111553120,0.03,70314.0,70313.0,0.00144]
[1773111553520,0.03,70314.0,70307.0,0.07111652]
[1773111553849,0.03,70314.0,70306.0,0.09169232]
[1773111554023,0.03,70314.0,70312.0,0.00144]
[1773111554224,0.03,70314.0,70305.0,0.07131814]
[1773111554452,0.03,70314.0,70306.0,0.00144]
[1773111554695,0.03,70312.0,70306.0,0.00144]
[1773111555515,0.03,70310.0,70307.0,0.00144]
[1773111555729,0.03,70308.0,70305.0,0.0002]
[1773111555904,0.03,70308.0,70306.0,0.00144]
[1773111556112,0.03,70308.0,70305.0,0.0002]
[1773111556395,0.03,70308.0,70306.0,0.00144]
[1773111556616,0.03,70306.0,70305.0,0.0002]
[1773111556955,0.03,70306.0,70305.0,0.00144]
[1773111557769,0.03,70306.0,70300.0,0.0004352]
[1773111557905,0.03,70306.0,70301.0,0.00144]
[1773111558339,0.03,70306.0,70302.0,0.09169232]
[1773111558776,0.1011167,70307.0,70302.0,0.09169232]
[1773111559157,0.1011167,70307.0,70301.0,0.00144]
[1773111560201,0.5200523,70305.0,70302.0,0.00144]
[1773111560697,0.03,70303.0,70302.0,0.00144]
[1773111561500,0.03,70303.0,70302.0,0.00244]
[1773111562129,0.03,70303.0,70293.0,0.0002]
[1773111562306,0.5200523,70301.0,70289.0,0.0002052]
[1773111562508,0.0711197,70304.0,70289.0,0.0002052]
[1773111562509,0.03,70297.0,70290.0,0.00144]
[1773111562692,0.5200523,70293.0,70288.0,0.0002]
[1773111563179,0.03,70293.0,70289.0,0.00144]
[1773111563390,0.03,70293.0,70290.0,0.00144]
[1773111563790,0.03,70293.0,70290.0,0.00038086]
[1773111563990,0.03,70293.0,70288.0,0.0002]
[1773111564363,0.03,70293.0,70280.0,0.0002]
[1773111564364,0.03,70287.0,70286.0,0.00144]
[1773111564745,0.00038062,70293.0,70280.0,0.0002]
[1773111564746,0.071136,70288.0,70280.0,0.0002]
[1773111564918,0.00038062,70293.0,70280.0,0.0002]
[1773111564919,0.071512,70293.0,70287.0,0.09169232]
[1773111565126,0.07111869,70305.0,70287.0,0.09169232]
[1773111565303,0.03,70304.0,70287.0,0.09180654]
[1773111566646,0.03,70300.0,70287.0,0.07125072]
[1773111566884,0.03,70300.0,70287.0,0.00011422]
[1773111567065,0.03,70296.0,70288.0,0.00144]
[1773111568051,0.03,70295.0,70288.0,0.00144]
[1773111569080,0.03,70298.0,70288.0,0.00144]
[1773111569458,0.5200523,70298.0,70288.0,0.00144]
[1773111570871,0.03,70298.0,70288.0,0.00144]
[1773111571079,0.03,70294.0,70288.0,0.00144]
[1773111572187,0.56118111,70297.0,70288.0,0.00144]
[1773111572188,0.07112881,70297.0,70289.0,0.09169232]
[1773111572360,0.07112679,70299.0,70289.0,0.09169232]
[1773111572582,0.07112881,70297.0,70289.0,0.09169232]
[1773111573343,0.4900523,70305.0,70290.0,0.09169232]
[1773111573344,0.03,70303.0,70290.0,0.09169232]
[1773111573830,0.51476235,70303.0,70290.0,0.07559424]
[1773111574521,0.51476235,70303.0,70290.0,0.09169232]
[1773111574696,0.51476235,70303.0,70291.0,0.00144]
[1773111575288,0.03,70301.0,70293.0,0.09169232]
[1773111577043,0.07111738,70307.0,70294.0,0.09169232]
[1773111577195,0.07133831,70306.0,70294.0,0.09169232]
[1773111577950,0.0711157,70308.0,70297.0,0.09169232]
[1773111578158,0.07111725,70307.0,70299.0,0.09169232]
[1773111578603,0.07133004,70314.0,70299.0,0.09169232]
[1773111578830,0.07133004,70314.0,70301.0,0.09169232]
[1773111579150,0.03,70313.0,70301.0,0.09169232]
[1773111579995,0.03,70313.0,70301.0,0.07112274]